[Event "10th Iberoamericano-ch 2024"]
[Site "Linares"]
[Date "2024.09.29"]
[Round "7.17"]
[White "Labiano Hernandez, Juan"]
[Black "Iglesias Ferreira, Andres"]
[Result "1-0"]
[ECO "B54"]
[WhiteElo "2398"]
[BlackElo "2285"]
[Annotator "RC"]
[PlyCount "49"]
[EventDate "2024.09.25"]
[EventType "swiss"]
[EventCountry "ESP"]
[SourceTitle "playchess.com"]
[Source "ChessBase"]
[SourceQuality "1"]
[TimeControl "5400+30"]

1. e4 {[%emt 0:00:02]} c5 {[%emt 0:00:59]} 2. Nf3 {[%emt 0:00:06]} d6 {[%emt 0:00:10]} 3. d4 {[%emt 0:00:05]} cxd4 {[%emt 0:00:10]} 4. Nxd4 {[%emt 0:00:07]} Nf6 {[%emt 0:00:10]} 5. f3 {[%emt 0:00:07]} e5 {[%emt 0:00:09]} 6. Nb3 {[%emt 0:00:01]} Be6 {[%emt 0:02:04]} 7. c4 {[%emt 0:00:06]} Nbd7 {[%emt 0:00:10]} 8. Nc3 {[%emt 0:00:08]} Rc8 {[%emt 0:00:52]} 9. Be3 {[%emt 0:00:04]} Bxc4 {[%emt 0:01:24]} 10. Bxc4 {[%emt 0:00:08]} Rxc4 {[%emt 0:00:12]} 11. Qd3 {[%emt 0:00:20]} Rc8 {[%emt 0:01:24]} 12. Bxa7 {[%emt 0:00:11]} d5 {[%emt 0:05:01]} 13. exd5 {[%emt 0:10:50]} Bb4 {[%emt 0:00:36]} 14. Bf2 {[%emt 0:10:24]} O-O {[%emt 0:05:51]} 15. O-O {[%emt 0:02:51]} Nb6 {[%emt 0:08:22]} 16. Ne4 {[%emt 0:20:05]} Nbxd5 {[%emt 0:04:50]} 17. Qb5 {[%emt 0:02:21]} Be7 {[%emt 0:16:12]} 18. Rfd1 {[%emt 0:16:30]} Nxe4 {[%emt 0:00:42]} 19. fxe4 {[%emt 0:00:08]} Nc7 {[%emt 0:00:04]} 20. Qxb7 {[%emt 0:01:57]} Qe8 {[%emt 0:00:53]} 21. Rac1 {[%emt 0:00:43]} Ne6 {[%emt 0:04:58]} 22. Rxc8 {[%emt 0:00:07]} Qxc8 {[%emt 0:00:05]} 23. Qxe7 {[%emt 0:00:05]} Qc2 {[%emt 0:01:15]} 24. Rf1 {[%emt 0:05:04]} Qxb2 {[%emt 0:07:23]} 25. Bc5 {[%emt 0:02:30]} 1-0

[Event "10th Iberoamericano-ch 2024"]
[Site "Linares"]
[Date "2024.09.29"]
[Round "7.18"]
[White "Leiva, Gianmarco"]
[Black "Ruiz Buendia, Miguel"]
[Result "1-0"]
[ECO "C50"]
[WhiteElo "2389"]
[BlackElo "2269"]
[Annotator "RC"]
[PlyCount "295"]
[EventDate "2024.09.25"]
[EventType "swiss"]
[EventCountry "ESP"]
[SourceTitle "playchess.com"]
[Source "ChessBase"]
[SourceQuality "1"]
[TimeControl "5400+30"]

1. e4 {[%emt 0:14:19]} e5 {[%emt 0:00:09]} 2. Nf3 {[%emt 0:00:05]} Nc6 {[%emt 0:00:08]} 3. Bc4 {[%emt 0:00:11]} Nf6 {[%emt 0:00:09]} 4. d3 {[%emt 0:00:04]} Bc5 {[%emt 0:00:14]} 5. O-O {[%emt 0:01:02]} d6 {[%emt 0:00:07]} 6. c3 {[%emt 0:00:22]} a5 {[%emt 0:00:08]} 7. Nbd2 {[%emt 0:04:18]} O-O {[%emt 0:00:29]} 8. h3 {[%emt 0:00:52]} h6 {[%emt 0:00:32]} 9. Re1 {[%emt 0:01:42]} Be6 {[%emt 0:00:28]} 10. Bb5 {[%emt 0:05:41]} Qb8 {[%emt 0:00:12]} 11. Bxc6 {[%emt 0:02:03]} bxc6 {[%emt 0:00:04]} 12. d4 exd4 {[%emt 0:00:36]} 13. cxd4 {[%emt 0:00:35]} Bb6 {[%emt 0:00:06]} 14. Qc2 {[%emt 0:01:30]} Qa7 {[%emt 0:03:13]} 15. Qxc6 {[%emt 0:08:46]} a4 {[%emt 0:00:57]} 16. Nf1 {[%emt 0:09:27]} Bc5 {[%emt 0:19:06]} 17. dxc5 {[%emt 0:16:17]} Bd7 {[%emt 0:00:23]} 18. Qxa8 {[%emt 0:00:05]} Qxa8 {[%emt 0:02:32]} 19. cxd6 {[%emt 0:06:27]} cxd6 {[%emt 0:02:48]} 20. e5 {[%emt 0:00:03]} Nd5 {[%emt 0:06:10]} 21. Bd2 {[%emt 0:01:16]} Rb8 {[%emt 0:06:27]} 22. b3 {[%emt 0:01:03]} dxe5 {[%emt 0:03:35]} 23. Nxe5 {[%emt 0:00:22]} Be6 {[%emt 0:00:43]} 24. Nd3 {[%emt 0:00:45]} Qc6 {[%emt 0:05:11]} 25. Rac1 {[%emt 0:00:06]} Qb5 {[%emt 0:02:01]} 26. Nc5 {[%emt 0:00:43]} axb3 {[%emt 0:07:29]} 27. Nxb3 {[%emt 0:00:07]} Qa4 {[%emt 0:03:41]} 28. Nc5 {[%emt 0:08:58]} Qxa2 {[%emt 0:00:57]} 29. Nxe6 {[%emt 0:00:06]} fxe6 {[%emt 0:00:06]} 30. Rxe6 {[%emt 0:00:02]} Rb2 {[%emt 0:04:19]} 31. Rd1 {[%emt 0:01:12]} Nf4 {[%emt 0:07:28]} 32. Re8+ {[%emt 0:01:25]} Kf7 {[%emt 0:00:35]} 33. Re3 {[%emt 0:00:03]} Rb3 {[%emt 0:06:22]} 34. Ree1 {[%emt 0:05:01]} Nd3 {[%emt 0:04:23]} 35. Ra1 {[%emt 0:00:02]} Qb2 {[%emt 0:00:28]} 36. Red1 {[%emt 0:00:01]} Rb7 {[%emt 0:06:17]} 37. Be3 {[%emt 0:02:40]} Qf6 {[%emt 0:00:28]} 38. Ng3 {[%emt 0:00:24]} Qg6 {[%emt 0:00:49]} 39. Kh2 {[%emt 0:02:09]} Rd7 {[%emt 0:02:51]} 40. Ra5 {[%emt 0:00:31]} Nc5 {[%emt 0:01:56]} 41. Rc1 {[%emt 0:02:10]} Ne6 {[%emt 0:00:43]} 42. Rc6 {[%emt 0:00:28]} Re7 {[%emt 0:04:09]} 43. Re5 {[%emt 0:02:31]} Qb1 {[%emt 0:01:57]} 44. Nf5 {[%emt 0:04:13]} Kf6 {[%emt 0:00:15]} 45. Bd4 {[%emt 0:00:54]} Qxf5 {[%emt 0:00:22]} 46. Rxf5+ {[%emt 0:00:43]} Kxf5 {[%emt 0:00:04]} 47. Bc3 {[%emt 0:00:53]} h5 {[%emt 0:00:20]} 48. Rb6 {[%emt 0:00:57]} g5 {[%emt 0:01:24]} 49. Rb5+ {[%emt 0:00:22]} Kg6 {[%emt 0:00:08]} 50. h4 {[%emt 0:00:55]} gxh4 {[%emt 0:00:30]} 51. Re5 {[%emt 0:00:03]} Re8 {[%emt 0:00:51]} 52. Bd2 {[%emt 0:00:02]} Ng7 {[%emt 0:00:25]} 53. Rg5+ {[%emt 0:00:03]} Kf6 {[%emt 0:00:08]} 54. Rc5 {[%emt 0:00:05]} Nf5 {[%emt 0:00:28]} 55. Bc3+ {[%emt 0:00:20]} Kg5 {[%emt 0:00:55]} 56. Rc6 {[%emt 0:00:01]} Re2 {[%emt 0:00:20]} 57. Bf6+ {[%emt 0:01:11]} Kf4 {[%emt 0:00:31]} 58. Rc4+ {[%emt 0:01:44]} Re4 {[%emt 0:00:02]} 59. Bg5+ {[%emt 0:00:30]} Ke5 {[%emt 0:00:04]} 60. Rc5+ {[%emt 0:00:09]} Ke6 {[%emt 0:00:04]} 61. Rc6+ {[%emt 0:00:10]} Kd5 {[%emt 0:01:05]} 62. Rf6 {[%emt 0:00:21]} Ke5 {[%emt 0:00:10]} 63. Rf8 {[%emt 0:00:17]} Rg4 {[%emt 0:01:03]} 64. Bc1 {[%emt 0:00:09]} Ke6 {[%emt 0:00:36]} 65. Bb2 {[%emt 0:00:49]} Rg6 {[%emt 0:00:56]} 66. Kh3 {[%emt 0:00:01]} Nd6 {[%emt 0:00:45]} 67. Rh8 {[%emt 0:01:39]} Ne4 {[%emt 0:00:22]} 68. f3 {[%emt 0:00:58]} Nf2+ {[%emt 0:00:44]} 69. Kh2 {[%emt 0:00:03]} Nd3 {[%emt 0:00:15]} 70. Re8+ {[%emt 0:00:37]} Kf7 {[%emt 0:00:20]} 71. Re2 {[%emt 0:00:05]} Nf4 {[%emt 0:00:43]} 72. Rc2 {[%emt 0:00:02]} Ke6 {[%emt 0:00:41]} 73. Bc3 {[%emt 0:00:50]} Nd5 {[%emt 0:00:25]} 74. Be1 {[%emt 0:00:11]} Nf4 {[%emt 0:00:36]} 75. Bxh4 {[%emt 0:00:12]} Kf7 {[%emt 0:00:28]} 76. Rc7+ {[%emt 0:01:18]} Kg8 {[%emt 0:00:24]} 77. Rc8+ {[%emt 0:00:58]} Kh7 {[%emt 0:00:13]} 78. Rc2 {[%emt 0:01:02]} Kh6 {[%emt 0:00:20]} 79. Bg3 {[%emt 0:00:12]} Ne6 {[%emt 0:00:21]} 80. Kh3 {[%emt 0:00:13]} Nd4 {[%emt 0:00:22]} 81. Rc7 {[%emt 0:00:47]} Rf6 {[%emt 0:00:32]} 82. Be5 {[%emt 0:00:22]} Ne6 {[%emt 0:00:27]} 83. Re7 {[%emt 0:01:07]} Ng5+ {[%emt 0:00:19]} 84. Kg3 {[%emt 0:00:29]} Re6 {[%emt 0:00:29]} 85. Bg7+ {[%emt 0:00:05]} Kg6 {[%emt 0:00:13]} 86. Rb7 {[%emt 0:00:05]} Rc6 {[%emt 0:00:50]} 87. Bd4 {[%emt 0:00:22]} Ne6 {[%emt 0:00:45]} 88. Bb2 {[%emt 0:00:49]} Ra6 {[%emt 0:00:52]} 89. Rb5 {[%emt 0:01:01]} Rc6 {[%emt 0:00:34]} 90. Re5 {[%emt 0:00:02]} Rb6 {[%emt 0:00:37]} 91. Bc1 {[%emt 0:00:05]} Rc6 {[%emt 0:00:11]} 92. Be3 {[%emt 0:00:01]} Ra6 {[%emt 0:00:40]} 93. Kh3 {[%emt 0:01:16]} Rc6 {[%emt 0:00:09]} 94. g3 {[%emt 0:00:27]} Ra6 {[%emt 0:00:22]} 95. Kh4 {[%emt 0:00:21]} Ra4+ {[%emt 0:00:56]} 96. f4 {[%emt 0:00:08]} Ng7 {[%emt 0:00:27]} 97. Rg5+ {[%emt 0:00:16]} Kf6 {[%emt 0:00:56]} 98. Bc5 {[%emt 0:00:03]} Ne6 {[%emt 0:00:33]} 99. Rxh5 {[%emt 0:00:43]} Nxf4 {[%emt 0:00:08]} 100. gxf4 {[%emt 0:00:05]} Rxf4+ {[%emt 0:00:05]} 101. Kg3 {[%emt 0:00:01]} Rf5 {[%emt 0:00:12]} 102. Rh6+ {[%emt 0:00:22]} Ke5 {[%emt 0:00:34]} 103. Bd6+ {[%emt 0:00:02]} Kd5 {[%emt 0:00:07]} 104. Bf4 {[%emt 0:00:09]} Rf7 {[%emt 0:00:26]} 105. Kf3 {[%emt 0:00:11]} Rd7 {[%emt 0:00:32]} 106. Ke3 {[%emt 0:00:43]} Re7+ {[%emt 0:00:10]} 107. Kd3 {[%emt 0:00:03]} Re6 {[%emt 0:00:13]} 108. Rh5+ {[%emt 0:00:09]} Kc6 {[%emt 0:00:06]} 109. Kd4 {[%emt 0:00:25]} Kd7 {[%emt 0:00:23]} 110. Kd5 {[%emt 0:00:31]} Re7 {[%emt 0:00:11]} 111. Be5 {[%emt 0:00:18]} Rf7 {[%emt 0:00:11]} 112. Rh6 {[%emt 0:00:12]} Re7 {[%emt 0:01:25]} 113. Ra6 {[%emt 0:01:02]} Rf7 {[%emt 0:01:49]} 114. Rb6 {[%emt 0:00:18]} Ke7 {[%emt 0:00:38]} 115. Ra6 {[%emt 0:05:13]} Kd7 {[%emt 0:00:06]} 116. Bf6 {[%emt 0:00:02]} Ke8 {[%emt 0:00:18]} 117. Ra8+ {[%emt 0:00:36]} Kd7 {[%emt 0:00:07]} 118. Ke5 {[%emt 0:00:06]} Kc6 {[%emt 0:00:14]} 119. Ke6 {[%emt 0:00:02]} Rb7 {[%emt 0:00:20]} 120. Bd4 {[%emt 0:00:37]} Kb5 {[%emt 0:01:49]} 121. Rc8 {[%emt 0:00:07]} Kb4 {[%emt 0:00:24]} 122. Rc2 {[%emt 0:00:26]} Rb5 {[%emt 0:00:14]} 123. Kd6 {[%emt 0:00:28]} Kb3 {[%emt 0:00:47]} 124. Rc1 {[%emt 0:00:02]} Rh5 {[%emt 0:01:18]} 125. Be5 {[%emt 0:00:23]} Rh4 {[%emt 0:00:42]} 126. Kd5 {[%emt 0:00:02]} Rb4 {[%emt 0:00:24]} 127. Bd4 {[%emt 0:00:37]} Rb5+ {[%emt 0:00:14]} 128. Bc5 {[%emt 0:00:27]} Kb2 {[%emt 0:00:11]} 129. Rg1 {[%emt 0:00:06]} Rb8 {[%emt 0:01:06]} 130. Kc4 {[%emt 0:00:02]} Rc8 {[%emt 0:00:25]} 131. Rg2+ {[%emt 0:02:15]} Kc1 {[%emt 0:00:12]} 132. Kd4 {[%emt 0:00:02]} Kb1 {[%emt 0:00:03]} 133. Rf2 {[%emt 0:02:27]} Rc7 {[%emt 0:00:04]} 134. Bb4 {[%emt 0:00:18]} Rc8 {[%emt 0:00:16]} 135. Kd3 {[%emt 0:00:23]} Rc7 {[%emt 0:00:31]} 136. Bc3 {[%emt 0:00:17]} Rh7 {[%emt 0:01:33]} 137. Rf1+ {[%emt 0:01:24]} Ka2 {[%emt 0:00:06]} 138. Kc2 {[%emt 0:00:01]} Rh2+ {[%emt 0:00:14]} 139. Bd2 {[%emt 0:00:01]} Rh3 {[%emt 0:01:35]} 140. Rf5 {[%emt 0:01:17]} Rg3 {[%emt 0:00:13]} 141. Ra5+ {[%emt 0:00:41]} Ra3 {[%emt 0:00:05]} 142. Rb5 {[%emt 0:00:29]} Rh3 {[%emt 0:00:10]} 143. Re5 {[%emt 0:00:25]} Rg3 {[%emt 0:00:11]} 144. Be3 {[%emt 0:00:31]} Ka3 {[%emt 0:01:15]} 145. Re4 {[%emt 0:00:32]} Rg2+ {[%emt 0:00:30]} 146. Bd2 {[%emt 0:00:02]} Rh2 {[%emt 0:00:39]} 147. Rg4 {[%emt 0:00:02]} Rf2 {[%emt 0:01:03]} 148. Rg5 {[%emt 0:00:08]} 1-0

[Event "10th Iberoamericano-ch 2024"]
[Site "Linares"]
[Date "2024.09.29"]
[Round "7.19"]
[White "Palma Villanueva, Miguel Tadeo"]
[Black "Perea Fruet, Lorenzo"]
[Result "1/2-1/2"]
[ECO "B30"]
[WhiteElo "2266"]
[BlackElo "2389"]
[Annotator "RC"]
[PlyCount "101"]
[EventDate "2024.09.25"]
[EventType "swiss"]
[EventCountry "ESP"]
[SourceTitle "playchess.com"]
[Source "ChessBase"]
[SourceQuality "1"]
[TimeControl "5400+30"]

1. e4 {[%emt 0:04:06]} c5 {[%emt 0:00:03]} 2. Nf3 {[%emt 0:00:04]} Nc6 {[%emt 0:00:04]} 3. Bb5 {[%emt 0:00:04]} e6 {[%emt 0:00:03]} 4. O-O {[%emt 0:00:21]} Nge7 {[%emt 0:00:11]} 5. d4 {[%emt 0:00:05]} cxd4 {[%emt 0:00:05]} 6. Nxd4 {[%emt 0:00:04]} Ng6 {[%emt 0:00:08]} 7. c3 {[%emt 0:00:11]} Be7 {[%emt 0:00:52]} 8. Be3 {[%emt 0:00:07]} O-O {[%emt 0:00:12]} 9. Nd2 {[%emt 0:00:03]} a6 {[%emt 0:00:49]} 10. Bd3 {[%emt 0:00:03]} b5 {[%emt 0:00:10]} 11. Qh5 {[%emt 0:00:14]} Bb7 {[%emt 0:04:47]} 12. f4 {[%emt 0:00:04]} e5 {[%emt 0:25:41]} 13. fxe5 {[%emt 0:09:54]} Ncxe5 {[%emt 0:03:04]} 14. Bc2 {[%emt 0:01:25]} Bc5 {[%emt 0:06:16]} 15. Bg5 {[%emt 0:22:51]} Qb6 {[%emt 0:11:43]} 16. N2b3 {[%emt 0:03:18]} Rae8 {[%emt 0:06:49]} 17. Nxc5 {[%emt 0:10:41]} Qxc5 {[%emt 0:00:28]} 18. Be3 {[%emt 0:00:04]} Qc7 {[%emt 0:03:30]} 19. Nf5 {[%emt 0:03:35]} d5 {[%emt 0:02:42]} 20. Bd4 {[%emt 0:05:58]} dxe4 {[%emt 0:03:02]} 21. Rae1 {[%emt 0:00:55]} Bc8 {[%emt 0:07:04]} 22. Rxe4 {[%emt 0:05:50]} Bxf5 {[%emt 0:01:22]} 23. Qxf5 {[%emt 0:02:54]} Nc4 {[%emt 0:02:27]} 24. Rh4 {[%emt 0:04:51]} Qc6 {[%emt 0:01:26]} 25. Qh5 {[%emt 0:09:45]} h6 {[%emt 0:00:12]} 26. Rg4 {[%emt 0:00:18]} Re6 {[%emt 0:05:48]} 27. Bf5 {[%emt 0:06:15]} Nxb2 {[%emt 0:02:51]} 28. Bxe6 {[%emt 0:02:08]} Qxe6 {[%emt 0:00:02]} 29. Qf5 {[%emt 0:01:02]} Qxf5 {[%emt 0:00:01]} 30. Rxf5 {[%emt 0:00:05]} Re8 {[%emt 0:00:11]} 31. h4 {[%emt 0:00:13]} Nc4 {[%emt 0:00:41]} 32. Rc5 {[%emt 0:02:39]} Nge5 {[%emt 0:01:54]} 33. Bxe5 {[%emt 0:01:01]} Nxe5 {[%emt 0:00:02]} 34. Re4 {[%emt 0:00:05]} f6 {[%emt 0:00:04]} 35. a4 {[%emt 0:01:01]} bxa4 {[%emt 0:02:08]} 36. Rxa4 {[%emt 0:00:05]} h5 {[%emt 0:00:04]} 37. Rxa6 {[%emt 0:01:20]} Rd8 {[%emt 0:00:06]} 38. Ra1 {[%emt 0:01:18]} Rd2 {[%emt 0:00:14]} 39. Rc7 {[%emt 0:00:23]} Ng4 {[%emt 0:01:21]} 40. Re1 {[%emt 0:01:53]} Ne5 {[%emt 0:00:11]} 41. c4 {[%emt 0:00:35]} Rc2 {[%emt 0:00:07]} 42. c5 {[%emt 0:00:04]} Kh7 {[%emt 0:00:03]} 43. Ra1 {[%emt 0:00:55]} Kh6 {[%emt 0:00:12]} 44. Raa7 {[%emt 0:01:56]} Ng4 {[%emt 0:01:27]} 45. Ra1 {[%emt 0:01:27]} Ne5 {[%emt 0:00:40]} 46. Rc8 {[%emt 0:00:38]} Kg6 {[%emt 0:00:14]} 47. Rf1 {[%emt 0:00:16]} Kh6 {[%emt 0:00:19]} 48. g3 {[%emt 0:00:41]} Kg6 {[%emt 0:01:47]} 49. Rc7 {[%emt 0:00:39]} Nd3 {[%emt 0:00:54]} 50. c6 {[%emt 0:00:18]} Ne5 {[%emt 0:00:08]} 51. Rf2 {[%emt 0:00:13]} 1/2-1/2

[Event "10th Iberoamericano-ch 2024"]
[Site "Linares"]
[Date "2024.09.29"]
[Round "7.20"]
[White "Prado Lobo, Jonas"]
[Black "Noboa Silva, Kevin"]
[Result "1/2-1/2"]
[ECO "B40"]
[WhiteElo "2385"]
[BlackElo "2270"]
[Annotator "RC"]
[PlyCount "76"]
[EventDate "2024.09.25"]
[EventType "swiss"]
[EventCountry "ESP"]
[SourceTitle "playchess.com"]
[Source "ChessBase"]
[SourceQuality "1"]
[TimeControl "5400+30"]

1. e4 {[%emt 0:00:03]} c5 {[%emt 0:00:48]} 2. Nf3 {[%emt 0:00:13]} e6 {[%emt 0:00:07]} 3. d4 {[%emt 0:00:09]} cxd4 {[%emt 0:00:21]} 4. Nxd4 {[%emt 0:00:04]} Nf6 {[%emt 0:00:12]} 5. Nc3 {[%emt 0:00:05]} Nc6 {[%emt 0:00:08]} 6. Qd3 {[%emt 0:00:04]} Bb4 {[%emt 0:02:12]} 7. a3 {[%emt 0:00:57]} Bxc3+ {[%emt 0:00:45]} 8. Qxc3 {[%emt 0:00:40]} O-O {[%emt 0:06:20]} 9. Nxc6 {[%emt 0:02:39]} bxc6 {[%emt 0:00:36]} 10. e5 {[%emt 0:02:42]} Nd5 {[%emt 0:01:31]} 11. Qg3 {[%emt 0:00:50]} f6 {[%emt 0:04:57]} 12. c4 {[%emt 0:09:41]} Ne7 {[%emt 0:02:06]} 13. exf6 {[%emt 0:04:16]} Nf5 {[%emt 0:03:20]} 14. fxg7 {[%emt 0:17:59]} Nxg3 {[%emt 0:05:45]} 15. gxf8=Q+ {[%emt 0:00:05]} Qxf8 {[%emt 0:00:16]} 16. hxg3 {[%emt 0:00:05]} Qf5 {[%emt 0:00:16]} 17. Be3 {[%emt 0:02:33]} Rb8 {[%emt 0:01:07]} 18. O-O-O {[%emt 0:04:42]} Rb3 {[%emt 0:00:49]} 19. Be2 {[%emt 0:07:31]} Qe5 {[%emt 0:06:34]} 20. Rd4 {[%emt 0:13:18]} c5 {[%emt 0:09:25]} 21. Rh5 {[%emt 0:05:23]} Qxh5 {[%emt 0:02:12]} 22. Bxh5 {[%emt 0:00:02]} cxd4 {[%emt 0:00:08]} 23. Bxd4 {[%emt 0:00:05]} Ba6 {[%emt 0:08:55]} 24. Be2 {[%emt 0:03:08]} Rb7 {[%emt 0:06:24]} 25. Kd2 {[%emt 0:00:45]} d5 {[%emt 0:03:34]} 26. c5 {[%emt 0:00:50]} Bxe2 {[%emt 0:00:26]} 27. Kxe2 {[%emt 0:00:01]} a5 {[%emt 0:00:25]} 28. Be5 {[%emt 0:00:44]} Rb5 {[%emt 0:03:49]} 29. c6 {[%emt 0:00:35]} Rc5 {[%emt 0:00:08]} 30. c7 {[%emt 0:00:08]} a4 {[%emt 0:00:11]} 31. g4 {[%emt 0:02:35]} Kf7 {[%emt 0:00:53]} 32. f4 {[%emt 0:00:14]} Rc4 {[%emt 0:02:02]} 33. g5 {[%emt 0:04:35]} Ke7 {[%emt 0:01:25]} 34. g4 {[%emt 0:05:29]} Kd7 {[%emt 0:00:21]} 35. Kf3 {[%emt 0:00:13]} Re4 {[%emt 0:00:31]} 36. Bd6 {[%emt 0:06:08]} Rc4 {[%emt 0:00:50]} 37. Be5 {[%emt 0:01:04]} Re4 {[%emt 0:00:16]} 38. Bd6 {[%emt 0:00:45]} Rc4 {[%emt 0:00:14]} 1/2-1/2

[Event "10th Iberoamericano-ch 2024"]
[Site "Linares"]
[Date "2024.09.29"]
[Round "7.21"]
[White "Moral Garcia, Serafin"]
[Black "Cesar Maestre, Bernardo"]
[Result "1-0"]
[ECO "A13"]
[WhiteElo "2262"]
[BlackElo "2369"]
[Annotator "RC"]
[PlyCount "69"]
[EventDate "2024.09.25"]
[EventType "swiss"]
[EventCountry "ESP"]
[SourceTitle "playchess.com"]
[Source "ChessBase"]
[SourceQuality "1"]
[TimeControl "5400+30"]

1. c4 {[%emt 0:00:02]} e6 {[%emt 0:00:21]} 2. g3 {[%emt 0:00:10]} d5 {[%emt 0:00:28]} 3. Bg2 {[%emt 0:00:10]} Nf6 {[%emt 0:00:28]} 4. Nf3 {[%emt 0:00:13]} d4 {[%emt 0:00:06]} 5. d3 {[%emt 0:00:44]} Nc6 {[%emt 0:02:32]} 6. O-O {[%emt 0:01:09]} Bc5 {[%emt 0:00:38]} 7. Na3 {[%emt 0:01:28]} O-O {[%emt 0:00:54]} 8. Nc2 {[%emt 0:00:49]} a5 {[%emt 0:00:59]} 9. e3 {[%emt 0:03:28]} e5 {[%emt 0:09:31]} 10. exd4 exd4 {[%emt 0:00:07]} 11. Re1 {[%emt 0:04:26]} Bf5 {[%emt 0:06:13]} 12. Ne5 {[%emt 0:03:56]} Nxe5 {[%emt 0:05:14]} 13. Rxe5 {[%emt 0:00:30]} Bg4 {[%emt 0:00:06]} 14. Bf3 {[%emt 0:04:13]} Nd7 {[%emt 0:14:41]} 15. Re1 {[%emt 0:03:25]} Bxf3 {[%emt 0:00:44]} 16. Qxf3 {[%emt 0:00:12]} c6 {[%emt 0:00:25]} 17. Bf4 {[%emt 0:07:25]} Qb6 {[%emt 0:06:10]} 18. b3 {[%emt 0:03:14]} Rfe8 {[%emt 0:00:08]} 19. Qg4 {[%emt 0:05:55]} Nf6 {[%emt 0:11:55]} 20. Qf5 {[%emt 0:08:27]} Bb4 {[%emt 0:11:59]} 21. Nxb4 {[%emt 0:09:41]} Qxb4 {[%emt 0:01:35]} 22. Kf1 {[%emt 0:04:23]} h5 {[%emt 0:08:01]} 23. h3 {[%emt 0:02:08]} a4 {[%emt 0:01:05]} 24. bxa4 {[%emt 0:02:28]} Qxa4 {[%emt 0:00:57]} 25. Rab1 {[%emt 0:05:24]} Rxe1+ {[%emt 0:02:40]} 26. Rxe1 {[%emt 0:00:56]} Qxa2 {[%emt 0:01:07]} 27. Be5 {[%emt 0:09:47]} Qa5 {[%emt 0:03:15]} 28. Qg5 {[%emt 0:00:41]} Re8 {[%emt 0:00:32]} 29. Re4 {[%emt 0:02:49]} Qa1+ {[%emt 0:08:33]} 30. Kg2 {[%emt 0:00:36]} Rxe5 {[%emt 0:00:05]} 31. Rxe5 {[%emt 0:00:28]} Qc3 {[%emt 0:00:05]} 32. Qf5 {[%emt 0:00:18]} Qb3 {[%emt 0:00:13]} 33. Re7 {[%emt 0:00:59]} b5 {[%emt 0:00:12]} 34. Rb7 {[%emt 0:00:40]} Qc3 {[%emt 0:00:26]} 35. Rb8+ {[%emt 0:00:16]} 1-0

[Event "10th Iberoamericano-ch 2024"]
[Site "Linares"]
[Date "2024.09.29"]
[Round "7.22"]
[White "Panelo, Marcelo"]
[Black "Garzon Zapatanga, Christopher Leonel"]
[Result "1/2-1/2"]
[ECO "A04"]
[WhiteElo "2364"]
[BlackElo "2216"]
[Annotator "RC"]
[PlyCount "90"]
[EventDate "2024.09.25"]
[EventType "swiss"]
[EventCountry "ESP"]
[SourceTitle "playchess.com"]
[Source "ChessBase"]
[SourceQuality "1"]
[TimeControl "5400+30"]

1. Nf3 {[%emt 0:00:31]} g6 {[%emt 0:00:18]} 2. g3 {[%emt 0:03:08]} Bg7 {[%emt 0:00:09]} 3. Bg2 {[%emt 0:00:05]} Nf6 {[%emt 0:00:37]} 4. O-O {[%emt 0:00:08]} O-O {[%emt 0:00:07]} 5. d4 {[%emt 0:00:04]} d6 {[%emt 0:00:05]} 6. a4 {[%emt 0:00:05]} Nc6 {[%emt 0:01:29]} 7. a5 {[%emt 0:00:41]} e5 {[%emt 0:01:26]} 8. dxe5 {[%emt 0:00:19]} dxe5 {[%emt 0:00:05]} 9. Nc3 {[%emt 0:10:04]} Qe7 {[%emt 0:12:46]} 10. Bg5 {[%emt 0:02:07]} Be6 {[%emt 0:01:58]} 11. a6 {[%emt 0:01:38]} b6 {[%emt 0:17:34]} 12. Nd2 {[%emt 0:13:11]} Qd7 {[%emt 0:01:55]} 13. Nde4 {[%emt 0:01:46]} Nxe4 {[%emt 0:01:14]} 14. Qxd7 {[%emt 0:06:57]} Bxd7 {[%emt 0:00:14]} 15. Bxe4 {[%emt 0:00:08]} f6 {[%emt 0:07:17]} 16. Rfd1 {[%emt 0:01:28]} Be8 {[%emt 0:00:25]} 17. Be3 {[%emt 0:06:46]} f5 {[%emt 0:03:53]} 18. Bd5+ {[%emt 0:01:07]} Kh8 {[%emt 0:00:07]} 19. Nb5 {[%emt 0:01:35]} f4 {[%emt 0:02:26]} 20. Nxc7 {[%emt 0:10:29]} Rc8 {[%emt 0:16:24]} 21. Bxb6 {[%emt 0:23:49]} axb6 {[%emt 0:00:12]} 22. a7 {[%emt 0:03:24]} Nxa7 {[%emt 0:04:35]} 23. Rxa7 {[%emt 0:00:06]} fxg3 {[%emt 0:06:44]} 24. hxg3 {[%emt 0:00:07]} Bf7 {[%emt 0:00:31]} 25. Bxf7 {[%emt 0:04:00]} Rxf7 {[%emt 0:01:30]} 26. Nb5 {[%emt 0:00:03]} Rxa7 {[%emt 0:01:24]} 27. Nxa7 {[%emt 0:00:06]} Ra8 {[%emt 0:00:27]} 28. Rd7 {[%emt 0:00:24]} e4 {[%emt 0:02:00]} 29. c3 {[%emt 0:00:14]} Bf6 {[%emt 0:03:10]} 30. e3 {[%emt 0:00:35]} Rd8 {[%emt 0:00:37]} 31. Rxd8+ {[%emt 0:05:15]} Bxd8 {[%emt 0:00:05]} 32. Nb5 {[%emt 0:01:45]} Be7 {[%emt 0:00:15]} 33. Kg2 {[%emt 0:01:46]} Kg7 {[%emt 0:00:06]} 34. Kh3 {[%emt 0:00:52]} Kf6 {[%emt 0:00:21]} 35. Nd4 {[%emt 0:00:06]} Bd6 {[%emt 0:01:51]} 36. Nb3 {[%emt 0:00:11]} Ke5 {[%emt 0:00:14]} 37. Nd2 {[%emt 0:00:14]} b5 {[%emt 0:00:26]} 38. Kg4 {[%emt 0:00:10]} h6 {[%emt 0:00:07]} 39. c4 {[%emt 0:01:34]} Bb4 {[%emt 0:00:27]} 40. f4+ {[%emt 0:00:57]} exf3 {[%emt 0:00:16]} 41. Nxf3+ {[%emt 0:00:05]} Ke4 {[%emt 0:00:05]} 42. cxb5 {[%emt 0:02:52]} h5+ {[%emt 0:00:56]} 43. Kg5 {[%emt 0:00:16]} Kxf3 {[%emt 0:00:06]} 44. Kxg6 {[%emt 0:00:02]} Kxg3 {[%emt 0:03:50]} 45. Kxh5 {[%emt 0:00:11]} Kf3 {[%emt 0:00:07]} 1/2-1/2

[Event "10th Iberoamericano-ch 2024"]
[Site "Linares"]
[Date "2024.09.29"]
[Round "7.23"]
[White "Jimenez Garcia, Emmanuel"]
[Black "Masague Artero, Guerau"]
[Result "1/2-1/2"]
[ECO "A15"]
[WhiteElo "2352"]
[BlackElo "2251"]
[Annotator "RC"]
[PlyCount "43"]
[EventDate "2024.09.25"]
[EventType "swiss"]
[EventCountry "ESP"]
[SourceTitle "playchess.com"]
[Source "ChessBase"]
[SourceQuality "1"]
[TimeControl "5400+30"]

1. Nf3 {[%emt 0:00:09]} Nf6 {[%emt 0:00:07]} 2. c4 {[%emt 0:00:13]} e6 {[%emt 0:00:07]} 3. b3 {[%emt 0:03:46]} d5 {[%emt 0:00:10]} 4. Bb2 {[%emt 0:00:06]} Be7 {[%emt 0:00:07]} 5. e3 {[%emt 0:00:27]} O-O {[%emt 0:00:13]} 6. Nc3 {[%emt 0:00:31]} c5 {[%emt 0:00:07]} 7. cxd5 {[%emt 0:00:16]} exd5 {[%emt 0:00:08]} 8. d4 {[%emt 0:00:13]} Nc6 {[%emt 0:00:13]} 9. Be2 {[%emt 0:01:01]} Ne4 {[%emt 0:00:10]} 10. O-O Bf6 {[%emt 0:00:19]} 11. Na4 {[%emt 0:07:34]} Bg4 {[%emt 0:30:24]} 12. Rc1 {[%emt 0:02:34]} cxd4 {[%emt 0:02:35]} 13. Nxd4 {[%emt 0:00:19]} Bxd4 {[%emt 0:02:29]} 14. Bxg4 {[%emt 0:03:52]} Bxb2 {[%emt 0:00:20]} 15. Nxb2 {[%emt 0:00:02]} Qa5 {[%emt 0:00:20]} 16. Na4 {[%emt 0:01:16]} Rad8 {[%emt 0:00:16]} 17. Qc2 {[%emt 0:14:43]} Rfe8 {[%emt 0:06:07]} 18. Rfd1 {[%emt 0:02:27]} d4 {[%emt 0:21:44]} 19. Bf3 {[%emt 0:11:01]} Nb4 {[%emt 0:01:53]} 20. Qc7 {[%emt 0:11:05]} Qxc7 {[%emt 0:00:11]} 21. Rxc7 {[%emt 0:00:03]} b5 {[%emt 0:02:16]} 22. Bxe4 {[%emt 0:08:12]} 1/2-1/2